[Event "Budapest Spring Festival 2019"]
[Site "Budapest"]
[Date "2019.04.10"]
[Round "2.37"]
[White "Nomin-Erdene, Davaademberel"]
[Black "Borhy, Marcell"]
[Result "0-1"]
[ECO "C41"]
[WhiteElo "2399"]
[BlackElo "2237"]
[Annotator "NA"]
[PlyCount "100"]
[EventDate "2019.04.09"]
[EventType "swiss"]
[EventCountry "HUN"]
[SourceTitle "playchess.com"]
[Source "ChessBase"]
[SourceQuality "1"]
[TimeControl "40/5400+30:1800+30"]

1. e4 {[%emt 0:01:06]} d6 {[%emt 0:00:08]} 2. d4 {[%emt 0:00:21]} Nf6 {[%emt 0:00:13]} 3. Nc3 {[%emt 0:00:14]} e5 {[%emt 0:00:08]} 4. Nf3 {[%emt 0:00:05]} Nbd7 {[%emt 0:00:06]} 5. Bc4 {[%emt 0:00:21]} Be7 {[%emt 0:00:09]} 6. a4 {[%emt 0:00:28]} O-O {[%emt 0:00:35]} 7. O-O {[%emt 0:00:06]} exd4 {[%emt 0:00:59]} 8. Nxd4 {[%emt 0:15:46]} Nb6 {[%emt 0:00:39]} 9. Ba2 {[%emt 0:01:19]} a5 {[%emt 0:00:08]} 10. Re1 {[%emt 0:04:45]} Nfd7 {[%emt 0:03:58]} 11. h3 $11 {[%emt 0:11:09]} Nc5 {[%emt 0:01:07]} 12. Qh5 {[%emt 0:07:52]} Bf6 {[%emt 0:04:07]} 13. Nf3 {[%emt 0:02:25]} g6 {[%emt 0:03:05]} 14. Qh6 {[%emt 0:00:08]} Bg7 {[%emt 0:00:30]} 15. Qf4 {[%emt 0:02:31]} Be6 {[%emt 0:19:07]} 16. Qg3 {[%emt 0:06:35]} Bxa2 {[%emt 0:03:34]} 17. Rxa2 {[%emt 0:00:08]} Bxc3 {[%emt 0:03:28]} 18. bxc3 {[%emt 0:00:09]} f6 {[%emt 0:02:23]} 19. Nd4 {[%emt 0:11:34]} Qe8 {[%emt 0:02:00]} 20. f3 {[%emt 0:00:34]} Nbxa4 {[%emt 0:02:09]} 21. Bh6 {[%emt 0:07:01]} Rf7 {[%emt 0:00:39]} 22. Ra3 {[%emt 0:00:09]} Nb6 {[%emt 0:02:56]} 23. h4 {[%emt 0:00:25]} Nc4 {[%emt 0:00:45]} 24. Raa1 {[%emt 0:00:06]} a4 {[%emt 0:07:51]} 25. h5 {[%emt 0:11:03]} Qe5 {[%emt 0:02:46]} 26. Qg4 {[%emt 0:01:16]} Qxh5 {[%emt 0:00:14]} 27. Qxh5 {[%emt 0:00:03]} gxh5 {[%emt 0:00:04]} 28. Kf2 {[%emt 0:00:04]} Rd7 {[%emt 0:03:15]} 29. Rh1 {[%emt 0:00:23]} Ra5 {[%emt 0:03:52]} 30. Rh3 {[%emt 0:08:57]} Kf7 {[%emt 0:02:17]} 31. Bc1 {[%emt 0:03:38]} Ne6 {[%emt 0:04:09]} 32. Nf5 {[%emt 0:02:09]} Ng7 {[%emt 0:00:45]} 33. Nh6+ {[%emt 0:02:54]} Ke8 {[%emt 0:02:39]} 34. g4 {[%emt 0:00:38]} d5 {[%emt 0:00:57]} 35. exd5 {[%emt 0:00:30]} Rdxd5 {[%emt 0:00:09]} 36. Bf4 {[%emt 0:00:05]} Kd7 {[%emt 0:07:16]} 37. Ng8 {[%emt 0:00:17]} Ra6 {[%emt 0:00:31]} 38. Bh6 {[%emt 0:01:01]} Ne8 {[%emt 0:00:28]} 39. gxh5 {[%emt 0:00:32]} a3 {[%emt 0:02:13]} 40. Rh4 {[%emt 0:00:00]} Ncd6 {[%emt 0:00:00]} 41. Rhh1 {[%emt 0:10:57]} Rb5 {[%emt 0:05:23]} 42. Be3 {[%emt 0:06:26]} Rb2 {[%emt 0:01:31]} 43. Rhc1 {[%emt 0:00:42]} a2 {[%emt 0:00:52]} 44. Ke2 {[%emt 0:02:10]} Nc4 {[%emt 0:07:26]} 45. Bd4 {[%emt 0:01:01]} Na3 {[%emt 0:08:35]} 46. Kd3 {[%emt 0:09:37]} Rd6 {[%emt 0:00:39]} 47. c4 {[%emt 0:02:54]} Rb1 {[%emt 0:02:35]} 48. Ke4 {[%emt 0:00:52]} Rxc1 {[%emt 0:00:28]} 49. Rxc1 {[%emt 0:00:05]} Rxd4+ {[%emt 0:00:37]} 50. Kxd4 {[%emt 0:00:07]} Nb1 {[%emt 0:00:40]} 0-1

[Event "Budapest Spring Festival 2019"]
[Site "Budapest"]
[Date "2019.04.10"]
[Round "2.38"]
[White "Csati, Oliver"]
[Black "Ashwath, R.."]
[Result "0-1"]
[ECO "D38"]
[WhiteElo "2221"]
[BlackElo "2388"]
[Annotator "NA"]
[PlyCount "54"]
[EventDate "2019.04.09"]
[EventType "swiss"]
[EventCountry "HUN"]
[SourceTitle "playchess.com"]
[Source "ChessBase"]
[SourceQuality "1"]
[TimeControl "40/5400+30:1800+30"]

1. d4 {[%emt 0:01:32]} Nf6 {[%emt 0:00:29]} 2. c4 {[%emt 0:00:08]} e6 {[%emt 0:00:04]} 3. Nf3 {[%emt 0:00:26]} d5 {[%emt 0:00:05]} 4. Nc3 {[%emt 0:00:27]} Bb4 {[%emt 0:00:07]} 5. Bg5 {[%emt 0:00:42]} Nbd7 {[%emt 0:00:51]} 6. cxd5 {[%emt 0:01:15]} exd5 {[%emt 0:00:23]} 7. e3 {[%emt 0:00:19]} c5 {[%emt 0:00:39]} 8. dxc5 {[%emt 0:01:11]} Qa5 {[%emt 0:01:01]} 9. Rc1 {[%emt 0:00:47]} Ne4 {[%emt 0:04:42]} 10. Qxd5 {[%emt 0:00:22]} Nxc3 {[%emt 0:02:47]} 11. bxc3 {[%emt 0:00:03]} Bxc3+ {[%emt 0:00:57]} 12. Kd1 {[%emt 0:00:28]} O-O {[%emt 0:20:08]} 13. Bc4 {[%emt 0:00:22]} Nf6 {[%emt 0:15:28]} 14. Bxf6 {[%emt 0:00:46]} Bxf6 {[%emt 0:00:25]} 15. Ke2 {[%emt 0:00:50]} Bg4 {[%emt 0:02:49]} 16. Rhd1 {[%emt 0:00:47]} Rad8 {[%emt 0:14:33]} 17. Qxb7 {[%emt 0:04:55]} Rxd1 {[%emt 0:01:00]} 18. Rxd1 {[%emt 0:00:08]} Qxc5 {[%emt 0:00:26]} 19. Qb3 {[%emt 0:00:19]} Qh5 {[%emt 0:11:54]} 20. Rd5 {[%emt 0:33:07]} Qxh2 {[%emt 0:01:48]} 21. Kf1 {[%emt 0:20:29]} Qc7 {[%emt 0:01:41]} 22. Rd2 {[%emt 0:07:05]} h5 {[%emt 0:00:49]} 23. Nd4 {[%emt 0:03:53]} Rb8 {[%emt 0:04:57]} 24. Nb5 {[%emt 0:09:00]} Qh2 {[%emt 0:01:19]} 25. Bxf7+ {[%emt 0:04:11]} Kh8 {[%emt 0:00:33]} 26. f3 {[%emt 0:00:20]} Bxf3 {[%emt 0:03:48]} 27. gxf3 {[%emt 0:03:05]} Qxd2 {[%emt 0:00:02]} 0-1

[Event "Budapest Spring Festival 2019"]
[Site "Budapest"]
[Date "2019.04.10"]
[Round "2.39"]
[White "Bronstein, Or"]
[Black "Juhasz, Barbara"]
[Result "1-0"]
[ECO "E73"]
[WhiteElo "2387"]
[BlackElo "2199"]
[Annotator "NA"]
[PlyCount "81"]
[EventDate "2019.04.09"]
[EventType "swiss"]
[EventCountry "HUN"]
[SourceTitle "playchess.com"]
[Source "ChessBase"]
[SourceQuality "1"]
[TimeControl "40/5400+30:1800+30"]

1. d4 {[%emt 0:00:03]} Nf6 {[%emt 0:01:23]} 2. c4 {[%emt 0:00:34]} g6 {[%emt 0:00:25]} 3. Nc3 {[%emt 0:00:17]} Bg7 {[%emt 0:00:42]} 4. e4 {[%emt 0:00:09]} d6 {[%emt 0:00:18]} 5. Be2 {[%emt 0:00:43]} O-O {[%emt 0:00:16]} 6. Be3 {[%emt 0:00:20]} e5 {[%emt 0:00:58]} 7. d5 {[%emt 0:01:57]} a5 {[%emt 0:00:08]} 8. g4 {[%emt 0:00:07]} Na6 {[%emt 0:00:12] E73: King's Indian: Averbakh Variation without 6...c5} 9. h4 {[%emt 0:00:06]} Nc5 {[%emt 0:08:42]} 10. f3 {[%emt 0:00:15]} Nfd7 {[%emt 0:03:04]} (10... h5 11. g5 Nh7 12. Kd2 Bd7 13. Nh3 c6 14. Nf2 cxd5 15. exd5 f5 16. gxf6 Nxf6 17. Bxc5 dxc5 {0-1 (37) Vallejo Pons,F (2705)-Radjabov,T (2741) Palma de Mallorca 2017}) 11. h5 {[%emt 0:02:31]} g5 {[%emt 0:23:44]} 12. Qd2 $146 {[%emt 0:04:02]} ({Predecessor:} 12. h6 Bf6 13. Nh3 Be7 14. Qd2 f6 15. Nf2 Re8 16. Rh2 {½-½ (30) Tsolakidou,S (2279)-Afraoui,A (2014) Porto Carras 2015}) 12... h6 {[%emt 0:02:23]} 13. b3 {[%emt 0:00:02]} Re8 {[%emt 0:00:18]} 14. Nh3 {[%emt 0:00:35]} Bf8 {[%emt 0:06:33]} 15. Nf2 {[%emt 0:01:55]} c6 {[%emt 0:03:05]} 16. O-O {[%emt 0:04:17]} Nf6 {[%emt 0:10:05]} 17. Rab1 {[%emt 0:04:46]} Bd7 {[%emt 0:05:58]} 18. Nh1 {[%emt 0:12:52]} Be7 {[%emt 0:08:44]} 19. Ng3 {[%emt 0:00:51]} Qb8 $16 {[%emt 0:01:37]} 20. Bd1 {[%emt 0:14:29]} Rc8 {[%emt 0:05:45]} 21. Bc2 {[%emt 0:01:55]} Bd8 {[%emt 0:09:19]} 22. a3 {[%emt 0:02:34]} Na6 {[%emt 0:01:00]} 23. Rb2 {[%emt 0:11:40]} Ne8 {[%emt 0:00:36]} 24. Rfb1 {[%emt 0:00:45]} Ng7 {[%emt 0:00:43]} 25. b4 {[%emt 0:00:21]} axb4 {[%emt 0:00:11]} 26. axb4 {[%emt 0:00:02]} cxd5 {[%emt 0:00:51]} 27. exd5 {[%emt 0:02:59]} f5 {[%emt 0:02:16]} 28. gxf5 {[%emt 0:00:55]} Rxc4 {[%emt 0:02:19]} 29. Qd3 {[%emt 0:02:25]} Qc8 {[%emt 0:00:11]} 30. f6 {[%emt 0:00:09]} Bxf6 {[%emt 0:02:04]} 31. Qh7+ {[%emt 0:02:44]} Kf7 {[%emt 0:00:04]} 32. Nce4 {[%emt 0:02:06]} Be7 {[%emt 0:01:02]} 33. Bd3 {[%emt 0:00:24]} Rc7 {[%emt 0:00:52]} 34. Qg6+ {[%emt 0:00:51]} Kg8 {[%emt 0:00:12]} 35. Qxh6 {[%emt 0:00:29]} Bf5 {[%emt 0:00:49]} 36. Bxg5 {[%emt 0:01:10]} Bxg5 {[%emt 0:00:29]} 37. Qxg5 {[%emt 0:00:02]} Bxe4 {[%emt 0:00:29]} 38. Nxe4 {[%emt 0:00:17]} Qd8 {[%emt 0:00:32]} 39. Nf6+ {[%emt 0:00:26]} Kf8 {[%emt 0:00:06]} 40. h6 {[%emt 0:00:00]} Rf7 {[%emt 0:00:00]} 41. h7 {[%emt 0:00:54]} 1-0

[Event "Budapest Spring Festival 2019"]
[Site "Budapest"]
[Date "2019.04.11"]
[Round "3.3"]
[White "Nguyen, Piotr"]
[Black "Gopal G.N."]
[Result "0-1"]
[ECO "A04"]
[WhiteElo "2427"]
[BlackElo "2589"]
[Annotator "ChessBase"]
[PlyCount "76"]
[EventDate "2019.04.09"]
[EventType "swiss"]
[EventCountry "HUN"]
[SourceTitle "playchess.com"]
[Source "ChessBase"]
[SourceQuality "1"]
[TimeControl "40/5400+30:1800+30"]

1. Nf3 {[%emt 0:00:03]} c5 {[%emt 0:00:04]} 2. c4 {[%emt 0:00:10]} Nc6 {[%emt 0:00:09]} 3. b3 {[%emt 0:00:36]} e5 {[%emt 0:03:00]} 4. Bb2 {[%emt 0:00:16]} d6 {[%emt 0:00:31]} 5. g3 {[%emt 0:00:58]} g6 {[%emt 0:00:09]} 6. Bg2 {[%emt 0:00:06]} Bg7 {[%emt 0:00:05]} 7. O-O {[%emt 0:02:09]} Nge7 {[%emt 0:00:13]} 8. Nc3 {[%emt 0:01:10]} O-O {[%emt 0:00:32]} 9. d3 {[%emt 0:00:23]} h6 {[%emt 0:02:35]} 10. Nd2 {[%emt 0:01:09]} Be6 {[%emt 0:00:31]} 11. a3 {[%emt 0:02:17]} Qd7 {[%emt 0:06:07]} 12. Nd5 {[%emt 0:04:49]} f5 {[%emt 0:17:54]} 13. f4 {[%emt 0:17:29]} Rab8 {[%emt 0:05:49]} 14. Rb1 {[%emt 0:30:23]} Kh7 {[%emt 0:17:05]} 15. b4 {[%emt 0:05:06]} cxb4 {[%emt 0:13:36]} 16. Nxe7 {[%emt 0:01:50]} Nxe7 {[%emt 0:01:28]} 17. axb4 {[%emt 0:00:38]} b5 {[%emt 0:00:14]} 18. fxe5 {[%emt 0:03:09]} dxe5 {[%emt 0:00:24]} 19. Nb3 {[%emt 0:04:59]} bxc4 {[%emt 0:02:56]} 20. Nc5 {[%emt 0:00:09]} Qc8 {[%emt 0:02:03]} 21. Qa4 {[%emt 0:05:19]} Nd5 {[%emt 0:05:39]} 22. Qxa7 {[%emt 0:03:00]} Ra8 {[%emt 0:11:37]} 23. Qxa8 {[%emt 0:00:16]} Qxa8 {[%emt 0:00:17]} 24. Nxe6 {[%emt 0:00:06]} Rc8 {[%emt 0:06:26]} 25. dxc4 {[%emt 0:05:44]} Rxc4 {[%emt 0:01:14]} 26. Nxg7 {[%emt 0:04:43]} Qa7+ {[%emt 0:00:33]} 27. Kh1 {[%emt 0:00:46]} Ne3 {[%emt 0:00:06]} 28. Rfc1 {[%emt 0:00:57]} Qa2 {[%emt 0:02:07]} 29. Bxe5 {[%emt 0:03:30]} Qxe2 {[%emt 0:00:10]} 30. Bh3 {[%emt 0:00:16]} Ng4 {[%emt 0:00:53]} 31. Bxg4 {[%emt 0:00:36]} Qe4+ {[%emt 0:00:28]} 32. Kg1 {[%emt 0:00:05]} Qe3+ {[%emt 0:00:17]} 33. Kg2 {[%emt 0:00:14]} Qd2+ {[%emt 0:00:18]} 34. Kf1 {[%emt 0:03:07]} Rxc1+ {[%emt 0:00:04]} 35. Rxc1 {[%emt 0:00:03]} Qxc1+ {[%emt 0:00:03]} 36. Kf2 {[%emt 0:00:12]} fxg4 {[%emt 0:00:15]} 37. Ne8 {[%emt 0:01:03]} Qd2+ {[%emt 0:00:17]} 38. Kf1 {[%emt 0:00:14]} Qd1+ {[%emt 0:00:03]} 0-1

[Event "Budapest Spring Festival 2019"]
[Site "Budapest"]
[Date "2019.04.11"]
[Round "3.4"]
[White "Srinath, Rao S.V."]
[Black "Aryan Chopra"]
[Result "0-1"]
[ECO "B22"]
[WhiteElo "2416"]
[BlackElo "2547"]
[Annotator "ChessBase"]
[PlyCount "116"]
[EventDate "2019.04.09"]
[EventType "swiss"]
[EventCountry "HUN"]
[SourceTitle "playchess.com"]
[Source "ChessBase"]
[SourceQuality "1"]
[TimeControl "40/5400+30:1800+30"]

1. e4 {[%emt 0:00:15]} c5 {[%emt 0:00:08]} 2. c3 {[%emt 0:00:07]} Nf6 {[%emt 0:00:12]} 3. e5 {[%emt 0:00:05]} Nd5 {[%emt 0:00:03]} 4. d4 {[%emt 0:00:05]} cxd4 {[%emt 0:00:25]} 5. Nf3 {[%emt 0:00:05]} Nc6 {[%emt 0:00:12]} 6. cxd4 {[%emt 0:00:05]} d6 {[%emt 0:00:13]} 7. Bc4 {[%emt 0:00:06]} Nb6 {[%emt 0:00:04]} 8. Bb5 {[%emt 0:00:35]} dxe5 {[%emt 0:00:20]} 9. Nxe5 {[%emt 0:00:11]} Bd7 {[%emt 0:00:15]} 10. Nxd7 {[%emt 0:00:06]} Qxd7 {[%emt 0:00:04]} 11. O-O {[%emt 0:00:14]} e6 {[%emt 0:00:10]} 12. Nc3 {[%emt 0:00:05]} Rd8 {[%emt 0:00:24]} 13. Be3 {[%emt 0:00:05]} Be7 {[%emt 0:00:06]} 14. Qg4 {[%emt 0:00:53]} O-O {[%emt 0:00:25]} 15. Rad1 {[%emt 0:01:09]} g6 {[%emt 0:03:40]} 16. Bg5 {[%emt 0:07:08]} h5 {[%emt 0:18:23]} 17. Qh4 {[%emt 0:02:09]} Bxg5 {[%emt 0:00:49]} 18. Qxg5 {[%emt 0:00:05]} Qe7 {[%emt 0:01:22]} 19. Qc5 {[%emt 0:08:01]} Nd5 {[%emt 0:01:55]} 20. Ne4 {[%emt 0:02:29]} Rc8 {[%emt 0:03:59]} 21. Bxc6 {[%emt 0:14:20]} Rxc6 {[%emt 0:00:13]} 22. Qxa7 {[%emt 0:09:00]} Ra6 {[%emt 0:05:49]} 23. Qc5 {[%emt 0:02:05]} Rxa2 {[%emt 0:00:36]} 24. Rd2 {[%emt 0:03:17]} Rfa8 {[%emt 0:06:20]} 25. g3 {[%emt 0:03:30]} R2a4 {[%emt 0:12:06]} 26. Qc2 {[%emt 0:07:00]} Rb4 {[%emt 0:04:41]} 27. Re1 {[%emt 0:04:32]} h4 {[%emt 0:10:16]} 28. Kg2 {[%emt 0:04:02]} Kg7 {[%emt 0:02:07]} 29. Nc3 {[%emt 0:04:01]} Qg5 {[%emt 0:04:09]} 30. Nxd5 {[%emt 0:04:40]} Qxd5+ {[%emt 0:04:03]} 31. Qe4 {[%emt 0:00:16]} Rd8 {[%emt 0:06:19]} 32. Qxd5 {[%emt 0:00:44]} Rxd5 {[%emt 0:00:06]} 33. Re4 {[%emt 0:00:23]} hxg3 {[%emt 0:01:07]} 34. hxg3 {[%emt 0:00:38]} Rd6 {[%emt 0:03:22]} 35. Kf3 {[%emt 0:06:23]} f5 {[%emt 0:01:38]} 36. Re1 {[%emt 0:03:34]} Kf6 {[%emt 0:01:30]} 37. Ke3 {[%emt 0:00:44]} Rdb6 {[%emt 0:04:26]} 38. Rb1 {[%emt 0:00:05]} Ke7 {[%emt 0:01:06]} 39. Kf4 {[%emt 0:02:50]} Kf6 {[%emt 0:00:11]} 40. Ke3 {[%emt 0:00:00]} Rb3+ {[%emt 0:00:00]} 41. Ke2 {[%emt 0:00:09]} Ke7 {[%emt 0:12:44]} 42. Kd1 {[%emt 0:02:03]} Kd6 {[%emt 0:00:18]} 43. Kc2 {[%emt 0:00:55]} g5 {[%emt 0:06:00]} 44. Rd3 {[%emt 0:01:14]} Rxd3 {[%emt 0:01:40]} 45. Kxd3 {[%emt 0:00:04]} Rb3+ {[%emt 0:02:03]} 46. Kc4 {[%emt 0:01:42]} Rf3 {[%emt 0:00:12]} 47. Rf1 {[%emt 0:00:05]} g4 {[%emt 0:01:13]} 48. b4 {[%emt 0:01:39]} f4 {[%emt 0:03:44]} 49. Re1 {[%emt 0:03:28]} Rxf2 {[%emt 0:01:06]} 50. Re4 {[%emt 0:00:03]} Rf1 {[%emt 0:06:58]} 51. Kb5 {[%emt 0:01:21]} Kd5 {[%emt 0:00:48]} 52. Re5+ {[%emt 0:00:14]} Kxd4 {[%emt 0:00:05]} 53. gxf4 {[%emt 0:00:03]} Rxf4 {[%emt 0:00:41]} 54. Rxe6 {[%emt 0:00:04]} Rf5+ {[%emt 0:00:45]} 55. Kb6 {[%emt 0:00:08]} Rg5 {[%emt 0:00:37]} 56. Kxb7 {[%emt 0:03:03]} g3 {[%emt 0:00:08]} 57. Re1 {[%emt 0:01:35]} g2 {[%emt 0:00:10]} 58. Rg1 {[%emt 0:00:22]} Ke5 0-1

[Event "Budapest Spring Festival 2019"]
[Site "Budapest"]
[Date "2019.04.11"]
[Round "3.5"]
[White "Gschnitzer, Adrian"]
[Black "Kantor, Gergely"]
[Result "1/2-1/2"]
[ECO "A28"]
[WhiteElo "2380"]
[BlackElo "2505"]
[Annotator "ChessBase"]
[PlyCount "81"]
[EventDate "2019.04.09"]
[EventType "swiss"]
[EventCountry "HUN"]
[SourceTitle "playchess.com"]
[Source "ChessBase"]
[SourceQuality "1"]
[TimeControl "40/5400+30:1800+30"]

1. c4 {[%emt 0:01:05]} Nf6 {[%emt 0:00:07]} 2. Nc3 {[%emt 0:00:09]} e5 {[%emt 0:00:06]} 3. Nf3 {[%emt 0:00:09]} Nc6 {[%emt 0:00:17]} 4. e3 {[%emt 0:00:10]} Bb4 {[%emt 0:00:04]} 5. Qc2 {[%emt 0:00:10]} Bxc3 {[%emt 0:00:05]} 6. Qxc3 {[%emt 0:00:09]} Qe7 {[%emt 0:00:09]} 7. b3 {[%emt 0:00:15]} d5 {[%emt 0:01:55]} 8. d4 {[%emt 0:00:16]} Ne4 {[%emt 0:00:56]} 9. Qb2 {[%emt 0:02:48]} Be6 {[%emt 0:02:05]} 10. Be2 {[%emt 0:12:04]} Qb4+ {[%emt 0:05:36]} 11. Bd2 {[%emt 0:01:27]} Nxd2 {[%emt 0:04:45]} 12. Qxd2 {[%emt 0:00:11]} dxc4 {[%emt 0:05:41]} 13. bxc4 {[%emt 0:01:24]} Qxd2+ {[%emt 0:02:14]} 14. Kxd2 {[%emt 0:02:36]} exd4 {[%emt 0:00:16]} 15. exd4 {[%emt 0:10:48]} O-O-O {[%emt 0:02:48]} 16. Kc3 {[%emt 0:00:11]} Bg4 {[%emt 0:01:31]} 17. Rad1 {[%emt 0:04:04]} Rhe8 {[%emt 0:05:31]} 18. Rd2 {[%emt 0:01:33]} Re4 {[%emt 0:06:18]} 19. d5 {[%emt 0:02:02]} Na5 {[%emt 0:08:23]} 20. Nd4 {[%emt 0:05:45]} c5 {[%emt 0:10:20]} 21. f3 {[%emt 0:04:48]} Rxd4 {[%emt 0:12:09]} 22. fxg4 {[%emt 0:01:52]} Rxd2 {[%emt 0:07:20]} 23. Kxd2 {[%emt 0:00:10]} Kc7 {[%emt 0:02:09]} 24. Kc3 {[%emt 0:04:12]} Re8 {[%emt 0:02:54]} 25. Bd3 {[%emt 0:00:25]} h6 {[%emt 0:00:31]} 26. Rf1 {[%emt 0:02:24]} Re7 {[%emt 0:00:09]} 27. h4 {[%emt 0:03:25]} b6 {[%emt 0:03:26]} 28. g5 {[%emt 0:00:51]} hxg5 {[%emt 0:02:25]} 29. hxg5 {[%emt 0:00:09]} g6 {[%emt 0:01:26]} 30. Rf6 {[%emt 0:11:48]} Nb7 {[%emt 0:01:17]} 31. Rc6+ {[%emt 0:00:33]} Kd7 {[%emt 0:03:42]} 32. Bc2 {[%emt 0:00:17]} Nd8 {[%emt 0:02:37]} 33. Rf6 {[%emt 0:00:41]} Re3+ {[%emt 0:01:08]} 34. Kd2 {[%emt 0:00:12]} Re5 {[%emt 0:04:01]} 35. Ba4+ {[%emt 0:00:27]} Kc8 {[%emt 0:01:13]} 36. Kd3 {[%emt 0:09:43]} Rxg5 {[%emt 0:00:33]} 37. Be8 {[%emt 0:00:05]} Rxg2 {[%emt 0:01:48]} 38. Bxf7 {[%emt 0:00:04]} Nxf7 {[%emt 0:00:29]} 39. Rxf7 {[%emt 0:00:04]} Rxa2 {[%emt 0:00:14]} 40. d6 {[%emt 0:00:00]} Rg2 {[%emt 0:00:00]} 41. Ke4 1/2-1/2

[Event "Budapest Spring Festival 2019"]
[Site "Budapest"]
[Date "2019.04.11"]
[Round "3.6"]
[White "Bashirli, Nail"]
[Black "Arjun Kalyan"]
[Result "1/2-1/2"]
[ECO "B69"]
[WhiteElo "2333"]
[BlackElo "2445"]
[Annotator "ChessBase"]
[PlyCount "53"]
[EventDate "2019.04.09"]
[EventType "swiss"]
[EventCountry "HUN"]
[SourceTitle "playchess.com"]
[Source "ChessBase"]
[SourceQuality "1"]
[TimeControl "40/5400+30:1800+30"]

1. e4 {[%emt 0:00:38]} c5 {[%emt 0:00:07]} 2. Nf3 {[%emt 0:00:17]} Nc6 {[%emt 0:00:08]} 3. Nc3 {[%emt 0:00:21]} d6 {[%emt 0:00:38]} 4. d4 {[%emt 0:00:14]} cxd4 {[%emt 0:00:06]} 5. Nxd4 {[%emt 0:00:04]} Nf6 {[%emt 0:00:10]} 6. Bg5 {[%emt 0:00:47]} e6 {[%emt 0:00:42]} 7. Qd2 {[%emt 0:00:28]} a6 {[%emt 0:00:22]} 8. O-O-O {[%emt 0:00:08]} Be7 {[%emt 0:00:10]} 9. f4 {[%emt 0:00:34]} Bd7 {[%emt 0:00:32]} 10. Nf3 {[%emt 0:00:11]} b5 {[%emt 0:00:25]} 11. Bxf6 {[%emt 0:00:47]} gxf6 {[%emt 0:00:03]} 12. Kb1 {[%emt 0:00:16]} Qb6 {[%emt 0:00:16]} 13. Bd3 {[%emt 0:00:14]} O-O-O {[%emt 0:01:32]} 14. Rhe1 {[%emt 0:02:16]} Kb7 {[%emt 0:00:12]} 15. Nd5 {[%emt 0:06:41]} exd5 {[%emt 0:00:16]} 16. exd5 {[%emt 0:00:02]} Ne5 {[%emt 0:00:15]} 17. fxe5 {[%emt 0:00:02]} fxe5 {[%emt 0:00:13]} 18. Qh6 {[%emt 0:05:13]} f5 {[%emt 0:10:29]} 19. Qg7 {[%emt 0:07:45]} Rde8 {[%emt 0:13:48]} 20. Nxe5 {[%emt 0:07:02]} dxe5 {[%emt 0:01:01]} 21. d6 {[%emt 0:00:16]} Rhg8 {[%emt 0:15:05]} 22. Qxh7 {[%emt 0:07:03]} Rh8 {[%emt 0:00:49]} 23. Qg7 {[%emt 0:04:33]} Rhg8 {[%emt 0:00:15]} 24. Qf7 {[%emt 0:02:08]} Rgf8 {[%emt 0:01:15]} 25. Qg7 {[%emt 0:04:30]} Rg8 {[%emt 0:00:01]} 26. Qf7 {[%emt 0:00:58]} Rgf8 {[%emt 0:00:03]} 27. Qg7 {[%emt 0:00:06]} 1/2-1/2

[Event "Budapest Spring Festival 2019"]
[Site "Budapest"]
[Date "2019.04.11"]
[Round "3.10"]
[White "Bernadskiy, Vitaliy"]
[Black "Hando, Vilmos"]
[Result "1-0"]
[ECO "B12"]
[WhiteElo "2587"]
[BlackElo "2382"]
[Annotator "ChessBase"]
[PlyCount "119"]
[EventDate "2019.04.09"]
[EventType "swiss"]
[EventCountry "HUN"]
[SourceTitle "playchess.com"]
[Source "ChessBase"]
[SourceQuality "1"]
[TimeControl "40/5400+30:1800+30"]

1. e4 {[%emt 0:03:43]} c6 {[%emt 0:00:21]} 2. d4 {[%emt 0:00:30]} d5 3. e5 {[%emt 0:03:48]} Bf5 {[%emt 0:00:28]} 4. h4 {[%emt 0:01:01]} h5 {[%emt 0:00:40]} 5. Bd3 {[%emt 0:00:06]} Bxd3 {[%emt 0:01:09]} 6. Qxd3 {[%emt 0:00:06]} e6 {[%emt 0:06:01]} 7. Bg5 {[%emt 0:01:57]} Qb6 {[%emt 0:00:47]} 8. Nd2 {[%emt 0:00:40]} c5 {[%emt 0:11:02]} 9. c4 {[%emt 0:02:08]} Nc6 {[%emt 0:03:09]} 10. Ngf3 {[%emt 0:01:13]} Nb4 {[%emt 0:12:26]} 11. Qb3 {[%emt 0:00:41]} cxd4 {[%emt 0:00:49]} 12. O-O {[%emt 0:00:31]} f6 {[%emt 0:15:49]} 13. Bf4 {[%emt 0:02:03]} Rd8 {[%emt 0:02:59]} 14. a3 {[%emt 0:03:22]} Nc6 {[%emt 0:01:18]} 15. Qd3 {[%emt 0:00:06]} Kf7 {[%emt 0:08:11]} 16. b4 {[%emt 0:00:59]} a6 {[%emt 0:03:16]} 17. Rfe1 {[%emt 0:06:15]} Nge7 {[%emt 0:06:35]} 18. Rac1 {[%emt 0:00:06]} Rd7 {[%emt 0:02:26]} 19. Bh2 {[%emt 0:02:15]} Rh6 {[%emt 0:05:21]} 20. Qe2 {[%emt 0:02:20]} fxe5 {[%emt 0:04:20]} 21. cxd5 {[%emt 0:04:01]} Rxd5 {[%emt 0:01:31]} 22. Nc4 {[%emt 0:00:57]} Qd8 {[%emt 0:00:26]} 23. Ncxe5+ {[%emt 0:02:05]} Kg8 {[%emt 0:01:17]} 24. Nd3 {[%emt 0:00:30]} Rf5 {[%emt 0:05:10]} 25. Bf4 {[%emt 0:02:33]} Rg6 {[%emt 0:01:16]} 26. Bg5 {[%emt 0:00:05]} Qd6 {[%emt 0:01:14]} 27. Nde5 {[%emt 0:01:06]} Nxe5 {[%emt 0:00:31]} 28. Nxe5 {[%emt 0:00:07]} d3 {[%emt 0:01:28]} 29. Qxd3 {[%emt 0:00:44]} Qxd3 {[%emt 0:00:16]} 30. Nxd3 {[%emt 0:00:05]} Nc6 {[%emt 0:00:24]} 31. f4 {[%emt 0:02:35]} Bd6 {[%emt 0:01:01]} 32. Re4 {[%emt 0:06:38]} e5 {[%emt 0:01:58]} 33. fxe5 {[%emt 0:02:57]} Bxe5 {[%emt 0:00:47]} 34. Rxc6 {[%emt 0:03:06]} Rxc6 {[%emt 0:00:12]} 35. Rxe5 {[%emt 0:00:09]} Rxe5 {[%emt 0:00:18]} 36. Nxe5 {[%emt 0:00:03]} Rc3 {[%emt 0:02:05]} 37. a4 {[%emt 0:00:05]} a5 {[%emt 0:00:26]} 38. bxa5 {[%emt 0:01:15]} Rc5 {[%emt 0:00:12]} 39. Nd7 {[%emt 0:00:28]} Rxa5 {[%emt 0:00:13]} 40. Nb6 {[%emt 0:00:00]} Rf5 {[%emt 0:00:00]} 41. g3 {[%emt 0:03:34]} Kf7 {[%emt 0:02:26]} 42. Bf4 {[%emt 0:00:06]} Rf6 {[%emt 0:02:03]} 43. a5 {[%emt 0:03:04]} Rf5 {[%emt 0:02:08]} 44. Bd2 {[%emt 0:00:53]} Ke6 {[%emt 0:00:53]} 45. Kg2 {[%emt 0:00:31]} Rc5 {[%emt 0:05:30]} 46. Kf3 {[%emt 0:02:52]} Kf5 {[%emt 0:04:37]} 47. Bb4 {[%emt 0:05:56]} Rb5 {[%emt 0:01:42]} 48. Bc3 {[%emt 0:00:17]} Rb3 {[%emt 0:03:55]} 49. Nd5 {[%emt 0:00:06]} g5 {[%emt 0:01:42]} 50. hxg5 {[%emt 0:00:38]} Kxg5 {[%emt 0:00:04]} 51. Ke4 {[%emt 0:00:38]} Kg4 {[%emt 0:00:37]} 52. Be5 {[%emt 0:00:39]} Ra3 {[%emt 0:02:17]} 53. Ne3+ {[%emt 0:01:26]} Kh3 {[%emt 0:01:29]} 54. Nc4 {[%emt 0:00:42]} Rxg3 {[%emt 0:02:38]} 55. Bxg3 {[%emt 0:01:25]} Kxg3 {[%emt 0:00:14]} 56. Nd6 {[%emt 0:02:07]} Kg2 {[%emt 0:02:58]} 57. Nf5 {[%emt 0:00:49]} Kf2 {[%emt 0:00:16]} 58. Kf4 {[%emt 0:00:38]} Kg2 {[%emt 0:00:34]} 59. Kg5 {[%emt 0:00:56]} Kf3 {[%emt 0:00:33]} 60. Nd6 {[%emt 0:00:04]} 1-0